Cogmind - Beta 15 @@@ ROGUE MODE // 2025.05.17 @ 12:24:03 Player: Eggpie Result: Destroyed by G-34 Mercenary with Small Laser Performance ------------- Evolutions (1) 500 Regions Visited (2) 400 Robots Destroyed (19) 95 Value Destroyed (439) 439 Prototype IDs (0) 0 Alien Tech Used (0) 0 Bonus (0) 0 TOTAL SCORE: 1434 Bonus ------- None Cogmind --------- Core Integrity 0/400 Matter 22/300 Energy 84/100 System Corruption 0% Temperature Warning (370) Movement Core (50) Location -9/Materials Parts ------- > --- POWER (1) -------- (None) > --- PROPULSION (2) --- (None) > --- UTILITY (3) ------ Terrain Scan Processor > --- WEAPON (3) ------- (None) > --- INVENTORY (5) ---- High-capacity Matter Pod (0) Utility Shielding Utility Shielding Peak State ------------ > --- POWER ------------ Improved Ion Engine > --- PROPULSION ------- Aluminum Leg > --- UTILITY ---------- Small Storage Unit Improved Terrain Scanner Terrain Scan Processor > --- WEAPON ----------- Particle Gun Particle Gun Particle Gun > --- INVENTORY -------- High-capacity Matter Pod Utility Shielding Utility Shielding Particle Gun [Rating: 15] Favorites ----------- Power Light Ion Engine Engine Light Ion Engine Propulsion Aluminum Leg Leg Aluminum Leg Wheel Wheel Utility Small Storage Unit Device Improved Terrain Scanner Storage Small Storage Unit Processor Terrain Scan Processor Weapon Light Assault Rifle Energy Gun Small Laser Ballistic Gun Light Assault Rifle Special Weapon Mining Laser Build | -11 -10 -9 ------- Run | Yrd Mat Mat Slots Evolved 2 | . . 2 Power . | . . . Propulsion . | . . . Utility 1 | . . 1 Weapon 1 | . . 1 Parts Attached 27 | 8 7 12 Power 3 | 1 1 1 Engine 3 | 1 1 1 Core . | . . . Reactor . | . . . Propulsion 5 | 2 2 1 Treads . | . . . Leg 3 | . 2 1 Wheel 2 | 2 . . Hover . | . . . Flight . | . . . Utility 8 | 2 1 5 Device 5 | 1 . 4 Storage 2 | 1 1 . Processor 1 | . . 1 Hackware . | . . . Protection . | . . . Artifact . | . . . Weapon 11 | 3 3 5 Energy Gun 7 | 2 . 5 Energy Cannon . | . . . Ballistic Gun 2 | 1 1 . Ballistic Cannon . | . . . Launcher . | . . . Special Weapon 2 | . 2 . Impact Weapon . | . . . Slashing Weapon . | . . . Piercing Weapon . | . . . Special Melee Weapon . | . . . Unidentified Prototypes . | . . . Parts Lost 19 | . 4 15 Power 3 | . 1 2 Propulsion 4 | . 1 3 Utility 3 | . . 3 Weapon 9 | . 2 7 Highest Loss Streak 8 | . 4 8 To Critical Strikes . | . . . Average Backups 5 | 2 5 5 Power . | . . . Propulsion . | . . . Utility 3 | 1 3 3 Weapon 1 | 1 1 1 Tool/Special . | . . . Unused Backups 3 | . . 3 Power . | . . . Propulsion . | . . . Utility 3 | . . 3 Weapon . | . . . Tool/Special . | . . . Average Slot Usage (%) 81 | . 97 65 Engine 10 | . 13 7 Leg 9 | . 13 4 Wheel 6 | . 13 . Device 16 | . 14 18 Storage 12 | . 14 10 Processor 1 | . . 3 Energy Gun 13 | . 10 17 Ballistic Gun 9 | . 14 3 Peak Build Rating 15 | 10 10 15 Average Rating 8 | 6 9 9 On Entrance 6 | . 10 9 Naked Turns . | . . . Heaviest Build 18 | 12 12 18 Greatest Support 26 | 26 26 20 Greatest Overweight (x) 5 | . 1 5 Average Overweight (x) . | . . 2 Largest Inventory Capacity 25 | 8 25 8 Average Capacity 7 | 7 8 7 Most Carried 8 | 6 7 8 Average Carried 5 | 2 5 5 Final Capacity 8 | 8 8 5 Final Carried 6 | 6 5 3 Class Distribution -------------------- 48% | Scavenger-Mutant 39% | Mutant 7% | Scavenger-Skirmisher 4% | Skirmisher Dominant Class ---------------- Scavenger-Mutant | -10/Materials Scavenger-Mutant | -9/Materials Resources | -11 -10 -9 ----------- Run | Yrd Mat Mat Matter Collected 176 | 134 . 42 Remotely . | . . . Salvage Created 655 | 93 162 400 Parts 42 | 19 12 11 Haulers Intercepted . | . . . Recyclers Shooed 1 | . . 1 Parts Field Recycled . | . . . Retrieved Matter . | . . . Parts Self-Destructed . | . . . Prevented . | . . . Kills | -11 -10 -9 ------- Run | Yrd Mat Mat Combat Hostiles Destroyed 12 | . 6 6 Guns 11 | . 5 6 Cannons 1 | . 1 . Classes Destroyed 6 | 1 3 2 Worker 1 | . 1 . Tunneler 5 | 5 . . Recycler 1 | . . 1 Swarmer 3 | . 3 . Grunt 7 | . 3 4 Sentry 2 | . . 2 Best Kill Streak 5 | 4 5 4 Combat Bots Only 4 | . 4 3 Max Kills in Single Turn 2 | 1 2 2 Gunslinging 1 | . 1 . Exploded . | . . . Melee . | . . . Uniques/NPCs Destroyed . | . . . Combat | -11 -10 -9 -------- Run | Yrd Mat Mat Hostile Shots Fired 181 | . 63 118 Missed 49 | . 19 30 Hits 132 | . 44 88 Projectile 132 | . 44 88 Critical Strikes 2 | . . 2 Damage Taken 1673 | . 447 1226 Core 533 | . 129 404 Absorbed by Shields . | . . . Core Remaining (%) 74 | 100 48 . Volleys Fired 52 | 9 17 26 Largest 3 | 2 2 3 Hottest 200 | 90 200 195 Shots Fired 103 | 18 30 55 Gun 98 | 18 25 55 Cannon . | . . . Launcher . | . . . Special 5 | . 5 . Kinetic 35 | . 13 22 Thermal 68 | 18 17 33 Explosive . | . . . Electromagnetic . | . . . Robot Hit Streak 9 | 5 9 5 Robot Miss Streak 2 | 2 2 2 Penetration Max . | . . . Secondary Targets 6 | . 2 4 Max Gunslinging Chain 1 | . 1 1 Shots Hit Robots 63 | 10 18 35 Core Hits 33 | 6 9 18 Critical Kills . | . . . Critical Parts Destroyed . | . . . Critical Strikes 1 | . . 1 Burn 1 | . . 1 Melee Attacks . | . . . Impact . | . . . Slashing . | . . . Piercing . | . . . Sneak Attacks . | . . . Combat Hostiles . | . . . Follow-up Attacks . | . . . Damage Inflicted 745 | 116 232 397 Guns 673 | 116 160 397 Cannons . | . . . Explosions . | . . . Melee . | . . . Ramming . | . . . Kinetic 198 | . 67 131 Thermal 547 | 116 165 266 Explosive . | . . . Electromagnetic . | . . . Impact . | . . . Slashing . | . . . Piercing . | . . . Highest Corruption . | . . . Average Corruption . | . . . Corruption Purged . | . . . Corruption Blocked . | . . . Overload Shots . | . . . Overflow Damage . | . . . Projectiles . | . . . Explosions . | . . . Melee . | . . . Knockbacks . | . . . Impact . | . . . Kinetic . | . . . Secondary . | . . . Self-Inflicted Damage . | . . . Shots . | . . . Rammed . | . . . Targets Rammed . | . . . Kicked . | . . . Crushed . | . . . Highest Temperature 886 | 90 248 886 Average Temperature 212 | 37 139 344 Received Heat Transfer 741 | . 204 537 Effects 27 | . 1 26 Shutdowns 3 | . . 3 Energy Bleed 3 | . . 3 Interference 1 | . 1 . Matter Decay 3 | . . 3 Short Circuit 1 | . . 1 Damage (minor) 5 | . . 5 Damage (major) 10 | . . 10 Damage (core) 1 | . . 1 Siege Activations . | . . . Martial Activations . | . . . Shielding Activations . | . . . Robots Disrupted . | . . . Combat Hostiles . | . . . Robots Corrupted . | . . . Combat Hostiles . | . . . Parts Fried . | . . . Impact Corruptions . | . . . Robots Melted . | . . . Combat Hostiles . | . . . Parts Melted 1 | . . 1 Heat Transferred 1412 | 310 386 716 Parts Sabotaged . | . . . Parts Stolen . | . . . Parts Stripped . | . . . Power Chain Reactions . | . . . Alert | -11 -10 -9 ------- Run | Yrd Mat Mat Maximum Alert Level . | . . . Low Security (%) 100 | 100 100 100 Level 1 . | . . . Level 2 . | . . . Level 3 . | . . . Level 4 . | . . . Level 5 . | . . . High Security . | . . . Max Security . | . . . Peak Influence 100 | 10 100 95 Initial 16 | . 3 16 Average 21 | 2 35 12 Influence Increases 351 | 25 151 175 Destroy 0b10 Robot/C 240 | . 120 120 Destroy 0b10 Robot/NC 35 | 25 5 5 Destroy Leader 70 | . 20 50 Successful Hack 5 | . 5 . Destroy Structure 1 | . 1 . Influence Decreases 336 | 20 116 200 Entered New Map 26 | . 2 24 Time Decay 180 | 20 94 66 Lost Part 130 | . 20 110 Squads Dispatched 2 | . 1 1 Investigation 1 | . 1 . Extermination . | . . . Reinforcement 1 | . . 1 Assault . | . . . Garrison . | . . . Intercept . | . . . Searches Triggered . | . . . Construction Impeded . | . . . Haulers Reinforced . | . . . Active Scanning Responses . | . . . Cargo Convoy Interrupts . | . . . Stealth | -11 -10 -9 --------- Run | Yrd Mat Mat Distress Signals 3 | . 2 1 Communications Jammed . | . . . Distress Signals . | . . . Times Spotted 20 | . 7 13 Peak Tracking Total 7 | . 3 7 Tactical Retreats . | . . . Traps | -11 -10 -9 ------- Run | Yrd Mat Mat Traps Triggered 1 | . 1 . Indirectly . | . . . Trap Hack Attempts . | . . . Triggered . | . . . Disarmed . | . . . Reprogrammed . | . . . Reused . | . . . Traps Extracted . | . . . Installed . | . . . Triggered . | . . . Machines | -11 -10 -9 ---------- Run | Yrd Mat Mat Machines Disabled . | . . . Max in Single Turn . | . . . Machines Repaired . | . . . Machines Dismantled . | . . . Machines Sabotaged . | . . . Overloaded Fab Kills . | . . . Hacking | -11 -10 -9 --------- Run | Yrd Mat Mat Machines Accessed 4 | . 4 . Terminals 3 | . 3 . Fabricators . | . . . Repair Stations . | . . . Recycling Units 1 | . 1 . Scanalyzers . | . . . Garrison Access . | . . . Total Hacks 12 | . 12 . Successful 6 | . 6 . Failed 6 | . 6 . Catastrophic . | . . . Database Lockouts . | . . . Manual . | . . . Terminals 10 | . 10 . Fabricators . | . . . Repair Stations . | . . . Recycling Units 2 | . 2 . Scanalyzers . | . . . Garrison Access . | . . . Terminal Hacks 4 | . 4 . Record 1 | . 1 . Terminal Index 1 | . 1 . Alert Level 1 | . 1 . Zone Layout 1 | . 1 . Fabricator Hacks . | . . . Repair Station Hacks . | . . . Recycling Unit Hacks 2 | . 2 . Report Inventory 2 | . 2 . Scanalyzer . | . . . Garrison Access Hacks . | . . . Unauthorized Hacks . | . . . Terminals . | . . . Fabricators . | . . . Repair Stations . | . . . Recycling Units . | . . . Scanalyzers . | . . . Garrison Access . | . . . Data Cores Recovered . | . . . Used . | . . . Hacking Detections 3 | . 3 . Full Trace Events 1 | . 1 . Feedback Events . | . . . Feedback Blocked . | . . . Robot Schematics Acquired . | . . . Robots Built . | . . . Authchips . | . . . Time . | . . . Total Robot Build Rating . | . . . Part Schematics Acquired . | . . . Parts Built . | . . . Authchips . | . . . Time . | . . . Total Part Build Rating . | . . . Parts Repaired . | . . . Time . | . . . Parts Recycled . | . . . Recycled Matter . | . . . Retrieved Matter . | . . . Retrieved Components . | . . . Parts Scanalyzed . | . . . Part Schematics Acquired . | . . . Parts Damaged . | . . . Bothacking | -11 -10 -9 ------------ Run | Yrd Mat Mat Used RIF Installer . | . . . Robots Hacked . | . . . Non-combat . | . . . Combat . | . . . Robot Hacks Applied . | . . . Relay Couplers Released . | . . . Fabnet Peak Effective % . | . . . Robots Rewired . | . . . Allies Hacked . | . . . Hacks Repelled . | . . . Allies | -11 -10 -9 -------- Run | Yrd Mat Mat Total Allies . | . . . Largest Group . | . . . Highest-Rated Group . | . . . Highest-Rated Ally . | . . . Total Orders . | . . . Ally Attacks . | . . . Total Damage . | . . . Kills . | . . . Allies Corrupted . | . . . Allies Melted . | . . . Intel | -11 -10 -9 ------- Run | Yrd Mat Mat Active Infowar (turns) 624 | 53 279 292 Terrain 472 | 53 279 140 Seismic 220 | . . 220 Robot Analysis Total . | . . . Derelict Logs Recovered . | . . . Drone Launches . | . . . Drone Recoveries . | . . . Exploration | -11 -10 -9 ------------- Run | Yrd Mat Mat Turns Passed 699 | 96 303 300 Spaces Moved 361 | 60 213 88 Core 74 | 14 . 60 Treads . | . . . Legs 141 | . 113 28 Wheels 146 | 46 100 . Hover . | . . . Flight . | . . . Fastest Speed 50 | 50 80 50 Average Speed 127 | 80 106 211 Slowest Speed 300 | 90 190 300 Overloaded Moves . | . . . Propulsion Burnouts . | . . . Robots Hopped . | . . . Potential Cave-ins . | . . . Cave-ins Triggered . | . . . Exploration Rate (%) 19 | 3 40 14 Regions Visited 2 Branch Regions . Pre-discovered Areas . | . . . Known Exits Taken . | . . . Unknown Exits Taken 2 | 1 1 . Scrap Searched . | . . . Spaces Dug . | . . . Terrain Destroyed 1 | . 1 . Melee . | . . . Projectile 1 | . 1 . AOE . | . . . Terrain Rammed . | . . . Walls Destroyed . | . . . Machines Disabled . | . . . Actions | -11 -10 -9 --------- Run | Yrd Mat Mat Total 499 | 87 250 162 Wait 24 | . 2 22 Move 359 | 59 212 88 Hop . | . . . Pick Up 26 | 11 6 9 Fast Attach 4 | 2 . 2 Attach 20 | 5 4 11 Detach . | . . . Swap 7 | 1 6 . Drop 7 | . 3 4 Fire 52 | 9 17 26 Melee . | . . . Ram . | . . . Kick . | . . . Crush . | . . . Escape Stasis . | . . . Rewire . | . . . Trap . | . . . Miscellaneous . | . . . Route ------- -11/Scrapyard -10/Materials -9/Materials History --------- Turn | Location | Event 13 | -11/Scrapyard | Discovered new exit (range 15) 97 | -11/Scrapyard | Entered Materials 248 | -10/Materials | Core integrity fell below 50% 267 | -10/Materials | Lost 4 parts (1p1n2w) 282 | -10/Materials | Discovered new exit (range 13) 400 | -10/Materials | Entered another Materials area 400 | -9/Materials | Evolved 2 slots: Utility x1, Weapon x1 475 | -9/Materials | Core integrity fell below 50% 502 | -9/Materials | Lost 8 parts (1p2n2u3w) 683 | -9/Materials | Core integrity fell below 20% 700 | -9/Materials | Destroyed by G-34 Mercenary with Small Laser Last Messages --------------- damaged (-7). 00684_ Power failure, Imp. Ion Engine shutdown. 00684_ K-01 Serf collects debris. 00684_ Imp. Ion Engine destroyed. 00687_ Overheating: Particle Gun damaged (-10). 00687_ K-01 Serf collects debris. 00687_ Particle Gun destroyed. 00688_ Overheating: Matter decay (-2). 00688_ K-01 Serf collects debris. 00691_ Overheating: Terrain Scan Processor damaged (-4). 00691_ K-01 Serf collects debris. 00692_ Overheating: Particle Gun damaged (-1). 00693_ Particle Gun destroyed. 00693_ Imp. Terrain Scanner destroyed. 00695_ Broken Particle Gun destroyed. 00696_ K-01 Serf collects debris. 00699_ Dropped Particle Gun. 00699_ Dropped Sml. Storage Unit. 00700_ K-01 Serf collects debris. Map ----- +----------------------------------------------------+ | ?????????????????????????????????????????????????? | | ?????????????????????????????????????????????????? | | ??????????????????????????????? ?????????????##### | | ?????????????????????????? ??????????????????# # | | ???????????????????????? ??????#???? ????#?# # | | ???????????????????????# ??????#???????????# # | | ???????????????????????# ??????#???????##??# + | | ????????????????? =???# +?????????????????# # | | ????????????????? =??## #????????? ???#??# # | | ??????????????????? ?## ##?#?+????? ??????# # | | ??????????????????##+## #### #????? ?#?#?# # | | ?????????????????? ?? ???? ? ?????# # | | ??????????????????? ?????? ? ???#??# # | | ???????????????? ?? ? ? ? ?? ?? ?????# # | | ?????????????????##?### ???##? ? ?#?#??# # | | ????????????#????####??#% #??##??? ? ?#????# # | | ???????????????????????# ##?#??#? ? ##???# # | | ??????????????##???###?# ###########??#????# # | | ?????????????? ?##### + ####?#### # | | ????????????? ??? ?/ [#### ""!!!#?#??#??# # | | ??????????? ?? ?? ?######r##### "Y ! ##?#?##?# + | | ????????????? ???#?# %=% ## "" ##??##### # | | ????????????? ????#### %=gk## ###?????#% # | | ???????????????????#?## gg "# ####?#?##% # | | ??????????????##?????## kg "####/########## | | ????????????#????? ? #" @! "# | | ????????????? ??????#" T# | | ?????????????? ? ""??#" "# | | ????????????? ? ""??#T "# """"" #### | | ??????????????? ? ?#" "# """"" #??###### | | ?????????????? ? ? #" ## """"" #???????? | | ???????????????? ????#" ## """"" + ??????? | | ?????????????????? ??## ## """"" #???????# | | ????????????????? ????# ##^ ?"""" #???????? | | ??????????????? #?????######### ???"" #???????? | | ????????????????##?????? ? ??# ??? #???????? | | ?????????????????#??? ? ?? ???# ? ??? #???????? | | ??????????????????#?#???? ????# ? ? #???????? | | ????????????????????#?? ??? + ?? #???????? | | ????????????????????? ?? ? ??# ???? ????????? | | ??????????????????????? ???? ?#?? ??? ????????? | | ?????????????????????????????????????? ????????? | | ?????????????????????????????????????????????????? | | ?????????????????????????????????????????????????? | | ?????????????????????????????????????????????????? | | ?????????????????????????????????????????????????? | | ?????????????????????????????????????????????????? | | ?????????????????????????????????????????????????? | | ?????????????????????????????????????????????????? | | ?????????????????????????????????????????????????? | +----------------------------------------------------+ Best States ------------- Heat Dissipation 38 Energy Generation 12 Energy Capacity 265 Matter Stores 154 Matter Capacity 300 Sight Range 16 Terrain Scan Range 16 Terrain Scan Density 85 Evasion (%) 55 Item Schematics ----------------- None Robot Schematics ------------------ None Fabricated ------------ Nothing Repaired ---------- Nothing Alien Tech Used ----------------- None Achievements -------------- None Challenges ------------ None Game ------ Seed CooledScanMask Manual? 0 Play Time 00:10:35 Cumulative 26.6 hours Start 2025.05.17 @ 12:16:28 End 2025.05.17 @ 12:24:03 Sessions 1 Manual Loads 0 Difficulty Rogue Special Mode None Game No. 21 Rogue 15 Adventurer 0 Explorer 6 Win Type - Total 1 Types 1/0/0/0/0/0/0/0/0/0 Lore% 12 Gallery% 39 Achievement% 39 Wizard Run 0 Options --------- Layout 1 ASCII 0 Keyboard 0 Movement Mouse Keybinds 0 Fullscreen 1 Font 36/Smallcaps Map View 50x35 Zoom Use 0% Tactical HUD 1 Map Filters NONE Filters NONE Steam 1 RUN: 9db51c4d-6083-4c83-9a2a-0427c8c14476